bitfinex/quotes_SOLUSD_20250719
["timestamp","ask_amount","ask_price","bid_price","bid_amount"]
[1752910269489,42.91788633,176.74,176.73,10.69]
[1752910270173,48.57591507,176.74,176.73,10.0]
[1752910270379,48.57591507,176.74,176.72,10.0]
[1752910270687,3.61788633,176.73,176.72,10.69]
[1752910271684,3.61788633,176.73,176.71,10.0]
[1752910271883,42.95788633,176.72,176.7,0.69]
[1752910272076,39.34,176.71,176.69,10.0]
[1752910272285,39.34,176.71,176.7,10.0]
[1752910272483,42.95788633,176.71,176.7,10.0]
[1752910272684,42.95788633,176.71,176.7,10.69]
[1752910273069,48.61687563,176.71,176.7,10.69]
[1752910274681,42.95788633,176.71,176.7,10.69]
[1752910275192,3.61788633,176.71,176.7,10.69]
[1752910275986,40.14279368,176.77,176.71,10.0]
[1752910276180,2.79236472,176.79,176.72,0.69]
[1752910276181,3.61788633,176.74,176.72,0.69]
[1752910276498,42.95788633,176.74,176.73,10.0]
[1752910276703,42.95788633,176.74,176.73,10.69]
[1752910277418,3.61788633,176.75,176.73,10.69]
[1752910277603,42.95788633,176.75,176.74,10.69]
[1752910279582,39.34,176.75,176.74,10.69]
[1752910280396,42.95788633,176.75,176.74,10.69]
[1752910280708,3.61788633,176.75,176.74,10.69]
[1752910282512,9.27559495,176.75,176.74,10.69]
[1752910283997,9.27559495,176.75,176.73,10.0]
[1752910284200,42.95788633,176.74,176.72,10.69]
[1752910284510,3.61788633,176.73,176.72,10.69]
[1752910284711,39.34,176.74,176.72,10.69]
[1752910284917,3.61788633,176.73,176.72,10.69]
[1752910286885,48.61605682,176.74,176.73,10.0]
[1752910287085,48.61605682,176.74,176.72,10.0]
[1752910287302,3.61788633,176.73,176.72,10.0]
[1752910287905,3.61788633,176.73,176.72,10.69]
[1752910288106,3.61788633,176.73,176.72,10.0]
[1752910288304,3.61788633,176.73,176.7,10.69]
[1752910288514,3.61788633,176.71,176.7,10.69]
[1752910288921,3.61788633,176.71,176.7,10.0]
[1752910289100,3.61788633,176.71,176.69,10.0]
[1752910289305,3.61788633,176.71,176.68,0.69]
[1752910289306,42.95788633,176.7,176.68,0.69]
[1752910289626,3.61788633,176.69,176.68,10.0]
[1752910290220,39.34,176.7,176.68,10.0]
[1752910290424,3.61788633,176.69,176.68,10.69]
[1752910291511,42.95788633,176.7,176.68,10.69]
[1752910291814,39.34,176.7,176.69,10.69]
[1752910292225,3.61788633,176.71,176.7,10.0]
[1752910292395,3.61788633,176.71,176.7,10.69]
[1752910293493,9.27687563,176.71,176.7,10.69]
[1752910295822,9.27687563,176.71,176.7,10.0]
[1752910296116,9.27687563,176.71,176.7,10.69]
[1752910298330,9.27687563,176.71,176.69,10.0]
[1752910298507,3.61788633,176.7,176.69,10.0]
[1752910299022,3.61788633,176.7,176.69,10.69]
[1752910299416,9.27719589,176.7,176.69,10.69]
[1752910301201,3.61788633,176.71,176.7,10.0]
[1752910301526,3.61788633,176.71,176.7,10.69]
[1752910302828,9.27687563,176.71,176.7,10.69]
[1752910303328,9.27687563,176.71,176.7,10.0]
[1752910304816,9.27687563,176.71,176.69,10.0]
[1752910305019,9.27719589,176.7,176.69,10.0]
[1752910305403,48.61719589,176.7,176.69,10.0]
[1752910306447,48.61719589,176.7,176.68,0.03]
[1752910306736,3.61788633,176.69,176.68,0.03]
[1752910307438,3.91788633,176.69,176.68,0.03]
[1752910307740,7.53577266,176.69,176.67,0.03]
[1752910308028,43.25788633,176.68,176.67,0.03]
[1752910308709,48.61783652,176.68,176.67,0.03]
[1752910308936,48.71783652,176.68,176.67,0.03]
[1752910309526,52.33572285,176.68,176.66,0.03]
[1752910309826,7.33577266,176.67,176.66,0.03]
[1752910310420,7.23577266,176.67,176.66,0.03]
[1752910310619,12.89604322,176.67,176.66,0.03]
[1752910311334,12.99604322,176.67,176.66,0.03]
[1752910311635,12.99604322,176.67,176.66,1e-08]
[1752910312621,12.89604322,176.67,176.66,1e-08]
[1752910313314,12.99604322,176.67,176.66,1e-08]
[1752910316452,12.89604322,176.67,176.66,1e-08]
[1752910317915,13.19604322,176.67,176.66,1e-08]
[1752910319523,12.89604322,176.67,176.66,1e-08]
[1752910320236,13.19604322,176.67,176.66,1e-08]
[1752910320549,12.89604322,176.67,176.66,1e-08]
[1752910321648,9.27815689,176.67,176.66,0.67000001]
[1752910321842,39.4,176.67,176.66,10.67000001]
[1752910322037,5.65968473,176.69,176.68,10.0]
[1752910322238,48.69757106,176.69,176.66,0.67000001]
[1752910322442,3.61788633,176.67,176.66,1e-08]
[1752910322628,43.03788633,176.67,176.66,1e-08]
[1752910323233,43.03788633,176.67,176.66,0.67000001]
[1752910323446,43.03788633,176.67,176.66,1e-08]
[1752910323837,39.42,176.67,176.66,0.67000001]
[1752910324030,43.03788633,176.67,176.66,0.67000001]
[1752910324243,48.69815689,176.67,176.66,0.67000001]
[1752910324552,9.27815689,176.67,176.66,0.67000001]
[1752910324736,48.73815689,176.67,176.66,0.67000001]
[1752910325649,40.20891704,176.7,176.66,0.67000001]
[1752910325836,0.06,176.7,176.67,1.5404]
[1752910326159,0.06,176.7,176.69,10.0]
[1752910326528,0.06,176.7,176.69,10.67]
[1752910327043,3.67788633,176.7,176.69,10.67]
[1752910327443,9.33719589,176.7,176.67,10.67]
[1752910327647,3.61788633,176.68,176.67,10.67]
[1752910328132,5.65995019,176.68,176.67,10.67]
[1752910328333,9.27783652,176.68,176.67,10.67]
[1752910328555,49.15754338,176.69,176.67,10.67]
[1752910328735,49.15754338,176.69,176.67,10.0]
[1752910328937,49.15754338,176.69,176.68,10.67]
[1752910329448,49.15754338,176.69,176.67,10.0]
[1752910329759,3.61788633,176.68,176.67,10.0]
[1752910330153,9.27783652,176.68,176.66,10.67000001]
[1752910330344,5.65995019,176.68,176.67,10.0]
[1752910330544,5.65995019,176.68,176.66,10.67000001]
[1752910330545,49.13783652,176.68,176.66,10.67000001]
[1752910330854,49.13783652,176.68,176.66,1e-08]
[1752910332049,49.13783652,176.68,176.66,10.67000001]
[1752910332050,3.61788633,176.67,176.66,10.67000001]
[1752910332463,3.61788633,176.67,176.66,1e-08]
[1752910332759,7.53577266,176.67,176.66,1e-08]
[1752910333669,13.19604322,176.67,176.66,1e-08]
[1752910334160,12.89604322,176.67,176.66,1e-08]
[1752910334341,9.27815689,176.67,176.66,1e-08]
[1752910334541,9.27815689,176.67,176.66,0.67000001]
[1752910336559,9.27815689,176.67,176.66,1e-08]
[1752910337951,12.89604322,176.67,176.66,1e-08]
[1752910341350,13.19604322,176.67,176.66,1e-08]
[1752910342057,55.98072719,176.67,176.66,1e-08]
[1752910342252,26.0,176.64,176.6,0.03]
[1752910342568,9.28007986,176.61,176.6,10.03]
[1752910342746,49.12007986,176.61,176.6,10.7]
[1752910344470,43.45788633,176.61,176.6,10.7]
[1752910344969,49.12007986,176.61,176.6,10.7]
[1752910345177,43.45788633,176.61,176.6,10.7]
[1752910346152,3.61788633,176.65,176.62,10.0]
[1752910346346,39.84,176.64,176.63,0.68]
[1752910346569,39.84,176.64,176.63,10.68]
[1752910346864,9.27847729,176.66,176.65,10.0]
[1752910347070,9.27847729,176.66,176.65,10.68]
[1752910347071,49.11847729,176.66,176.65,10.68]
[1752910347289,39.84,176.66,176.65,10.68]
[1752910347654,0.06,176.67,176.65,10.68]
[1752910347655,45.56030965,176.67,176.65,10.68]
[1752910347865,39.9,176.67,176.66,10.68]
[1752910348251,0.06,176.67,176.66,10.68]
[1752910349279,9.33815689,176.67,176.66,10.68]
[1752910349583,45.58027056,176.67,176.66,10.68]
[1752910349753,49.19815689,176.67,176.66,10.68]
[1752910349949,45.58027056,176.67,176.66,10.68]
[1752910350178,49.19815689,176.67,176.66,10.68]
[1752910350677,45.58027056,176.67,176.66,10.68]
[1752910350880,39.92,176.67,176.66,10.68]
[1752910351081,0.06,176.67,176.66,10.68]
[1752910351261,3.67788633,176.67,176.66,10.68]
[1752910351756,9.33815689,176.67,176.66,10.0]
[1752910353067,9.33815689,176.67,176.65,10.0]
[1752910353268,43.53788633,176.66,176.64,10.0]
[1752910353475,39.92,176.66,176.65,10.0]
[1752910353672,43.53788633,176.66,176.65,10.0]
[1752910353872,43.53788633,176.66,176.65,10.68]
[1752910354492,49.19847729,176.66,176.65,10.68]
[1752910355193,45.58059096,176.66,176.65,10.68]
[1752910355493,49.19847729,176.66,176.65,10.68]
[1752910358467,39.92,176.66,176.65,10.68]
[1752910359288,39.94,176.67,176.66,10.0]
[1752910359487,0.06,176.67,176.66,10.68]
[1752910375909,3.67788633,176.67,176.66,10.0]
[1752910376293,3.67788633,176.67,176.66,10.72]
[1752910380504,0.06,176.67,176.66,10.72]
[1752910382309,3.67788633,176.67,176.65,10.0]
[1752910382486,43.69788633,176.66,176.63,10.0]
[1752910382685,3.61788633,176.64,176.63,10.0]
[1752910385427,9.27911821,176.64,176.63,10.0]
[1752910385602,9.27911821,176.64,176.62,10.03]
[1752910385922,43.37788633,176.63,176.62,10.03]
[1752910386292,43.67788633,176.63,176.62,0.03]
[1752910387325,49.33943872,176.63,176.62,0.03]
[1752910388450,63.49331971,176.63,176.59,10.0]
[1752910388721,3.61788633,176.6,176.59,10.0]
[1752910388918,43.35788633,176.6,176.58,10.42805456]
[1752910389107,3.61788633,176.59,176.58,10.42805456]
[1752910389515,39.74,176.6,176.59,10.0]
[1752910389709,43.35788633,176.6,176.59,10.0]
[1752910389896,43.35788633,176.6,176.59,10.72]
[1752910390900,49.02040048,176.6,176.59,10.0]
[1752910391308,49.02040048,176.6,176.58,11.14805456]
[1752910391606,3.61788633,176.59,176.58,10.42805456]
[1752910391805,45.40251415,176.6,176.58,10.42805456]
[1752910392006,3.61788633,176.59,176.58,10.42805456]
[1752910392802,9.28072114,176.59,176.58,10.42805456]
[1752910393323,9.28072114,176.59,176.58,11.14805456]
[1752910397635,5.66283481,176.59,176.58,11.14805456]
[1752910397854,9.28072114,176.59,176.58,11.14805456]
[1752910398521,39.74,176.6,176.59,10.0]
[1752910398727,9.27879773,176.65,176.63,10.0]
[1752910398934,5.6609114,176.65,176.64,10.72]
[1752910399143,39.74,176.66,176.65,10.0]
[1752910399336,39.74,176.66,176.65,10.72]
[1752910400224,45.40059096,176.66,176.65,10.72]
[1752910403950,39.74,176.66,176.65,10.72]
[1752910404150,0.06,176.67,176.66,10.0]
[1752910404641,0.06,176.67,176.66,10.72]
[1752910410264,3.67788633,176.67,176.66,10.72]
[1752910410426,3.67788633,176.67,176.66,10.0]
[1752910411860,9.33815689,176.67,176.66,10.0]
[1752910413156,9.33815689,176.67,176.66,10.69]
[1752910414060,5.72027056,176.67,176.66,10.69]
[1752910415442,0.06,176.67,176.66,10.69]
[1752910416146,0.06,176.67,176.66,14.30788633]
[1752910416769,0.06,176.67,176.66,124.91922035]
[1752910416969,0.06,176.67,176.66,124.35316126]
[1752910417276,0.06,176.67,176.66,130.69266126]
[1752910418651,39.33623522,176.74,176.67,16.78468397]
[1752910418844,3.61788633,176.72,176.71,10.0]
[1752910420155,9.27655541,176.72,176.71,10.0]
[1752910420870,9.27655541,176.72,176.71,10.69]
[1752910422537,3.61788633,176.73,176.72,10.0]
[1752910422742,44.99435847,176.74,176.73,10.0]
[1752910423145,5.65812325,176.74,176.73,10.69]
[1752910423346,9.27600958,176.74,176.73,10.69]
[1752910424366,5.71770862,176.75,176.73,10.69]
[1752910424547,0.06,176.75,176.74,10.69]
[1752910425850,0.06,176.75,176.74,71.37837317]
[1752910426177,0.06,176.75,176.74,77.03640191]
[1752910427644,0.06,176.75,176.74,71.37837317]
[1752910428545,0.06,176.75,176.74,77.03640191]
[1752910428746,0.06,176.75,176.74,67.76048684]
[1752910428961,0.06,176.75,176.74,71.37837317]
[1752910429653,0.06,176.75,176.74,67.76048684]
[1752910429982,0.06,176.75,176.74,71.37837317]
[1752910434968,0.06,176.75,176.74,158.97837317]
[1752910435167,0.06,176.75,176.74,158.4125703]
[1752910435473,0.06,176.75,176.74,192.2925703]
[1752910443975,0.06,176.75,176.74,188.67468397]
[1752910444666,1.90815,176.75,176.74,192.2925703]
[1752910445675,1.90815,176.75,176.74,197.95059904]
[1752910445860,1.90815,176.75,176.74,223.95059904]
[1752910446054,1.90815,176.75,176.74,203.99369904]
[1752910448395,1.90815,176.75,176.74,194.71778397]
[1752910448566,1.90815,176.75,176.74,229.99369904]
[1752910448765,1.18815,176.75,176.74,203.99369904]
[1752910449108,0.06,176.78,176.77,86.66468397]
[1752910449267,0.06,176.78,176.77,217.4825703]
[1752910449471,0.06,176.78,176.77,218.2025703]
[1752910450086,0.06,176.78,176.77,223.8596388]
[1752910457912,0.06,176.78,176.77,218.2025703]
[1752910458210,0.06,176.78,176.77,148.26468397]
[1752910458495,0.06,176.78,176.77,191.4425703]
[1752910461388,0.75,176.78,176.77,191.4425703]
[1752910461980,0.75,176.78,176.77,153.94468397]
[1752910462910,0.75,176.78,176.77,114.38468397]
[1752910464692,0.06,176.78,176.77,114.95039082]
[1752910464881,0.06,176.78,176.77,115.67039082]
[1752910465079,0.06,176.78,176.77,119.28827715]
[1752910465277,0.06,176.78,176.77,118.7225703]
[1752910465984,0.06,176.78,176.77,118.0025703]
[1752910466900,0.77,176.78,176.77,114.38468397]
[1752910468605,0.06,176.78,176.77,114.38468397]
[1752910469000,0.06,176.78,176.77,118.0025703]
[1752910469907,0.06,176.78,176.77,114.38468397]
[1752910470703,0.06,176.78,176.77,119.22827715]
[1752910470917,0.06,176.78,176.77,118.6625703]
[1752910471298,0.06,176.78,176.77,124.3196388]
[1752910471696,0.06,176.78,176.77,158.1996388]
[1752910474588,0.06,176.79,176.78,148.20468397]
[1752910474812,0.06,176.79,176.78,197.6593188]
[1752910474994,0.06,176.79,176.78,199.2612188]
[1752910475320,0.06,176.81,176.8,60.66468397]
[1752910475499,0.06,176.81,176.8,104.36818115]
[1752910475818,0.06,176.81,176.8,105.02818115]
[1752910476900,0.06,176.81,176.8,110.68428974]
[1752910477603,0.06,176.81,176.8,66.88640341]
[1752910477807,0.06,176.81,176.8,110.00428974]
[1752910478697,0.06,176.81,176.8,110.66428974]
[1752910479411,0.06,176.81,176.8,198.20428974]
[1752910479601,0.06,176.81,176.8,197.63867889]
[1752910481018,0.59,176.85,176.84,26.78468397]
[1752910481195,0.59,176.85,176.84,153.84468397]
[1752910482512,0.59,176.85,176.84,137.06]
[1752910482723,0.59,176.85,176.84,97.54]
[1752910485301,0.59,176.85,176.84,10.0]
[1752910488304,9.8623958,176.85,176.84,10.0]
[1752910489994,4.20788633,176.85,176.84,10.0]
[1752910490927,0.59,176.85,176.84,10.0]
[1752910492640,6.24450947,176.85,176.84,10.0]
[1752910493628,0.59,176.85,176.84,10.0]
[1752910497212,0.59,176.85,176.84,10.03]
[1752910497413,0.65,176.85,176.84,10.03]
[1752910497834,6.30450947,176.85,176.84,10.03]
[1752910498508,9.9223958,176.85,176.84,10.03]
[1752910500412,4.26788633,176.85,176.84,10.03]
[1752910501659,9.9223958,176.85,176.84,10.03]
[1752910501927,13.54028213,176.85,176.84,10.03]
[1752910502115,9.9223958,176.85,176.84,10.03]
[1752910502514,13.54028213,176.85,176.84,10.03]
[1752910502914,17.91083892,176.85,176.84,10.03]
[1752910503429,17.91083892,176.85,176.84,0.03]
[1752910503635,17.91083892,176.85,176.84,10.03]
[1752910504130,8.62577536,176.85,176.84,10.03]
[1752910504933,9.93092233,176.85,176.84,10.03]
[1752910507434,9.93092233,176.85,176.84,0.03]
[1752910507641,13.55733519,176.85,176.84,0.03]
[1752910508416,13.55733519,176.85,176.84,1e-08]
[1752910508733,1.6556,176.84,176.8,0.03]
[1752910508920,3.62641286,176.81,176.8,0.03]
[1752910509611,4.28641286,176.81,176.8,0.03]
[1752910509924,24.08167329,176.81,176.76,0.03]
[1752910510108,3.62641286,176.77,176.76,0.03]
[1752910510309,3.62641286,176.77,176.76,10.03]
[1752910510516,4.28641286,176.77,176.76,10.03]
[1752910513041,9.94348136,176.77,176.76,10.03]
[1752910513734,9.94348136,176.77,176.76,0.03]
[1752910514119,9.94348136,176.77,176.76,10.03]
[1752910514735,39.44,176.83,176.76,10.03]
[1752910515038,0.66,176.79,176.77,10.0]
[1752910515927,0.66,176.78,176.77,10.0]
[1752910516235,4.28641286,176.78,176.77,10.0]
[1752910516441,4.28641286,176.78,176.76,10.03]
[1752910516626,4.28641286,176.77,176.76,10.03]
[1752910518051,0.66,176.77,176.76,10.03]
[1752910518247,4.28641286,176.77,176.76,10.03]
[1752910518449,0.66,176.79,176.78,10.0]
[1752910518634,3.62641286,176.79,176.78,10.0]
[1752910519031,3.62641286,176.79,176.77,10.0]
[1752910519224,3.62641286,176.79,176.78,10.0]
[1752910522053,6.31612449,176.8,176.78,10.0]
[1752910522348,5.65549293,176.82,176.8,10.0]
[1752910522570,3.62641286,176.81,176.8,10.0]
[1752910522935,4.28641286,176.81,176.8,10.0]
[1752910523432,9.94220155,176.81,176.8,10.0]
[1752910524172,9.94220155,176.81,176.78,10.0]
[1752910524321,9.94220155,176.81,176.76,0.03]
[1752910524322,3.62641286,176.79,176.77,10.0]
[1752910524526,43.72641286,176.78,176.76,10.03]
[1752910524755,4.28641286,176.77,176.76,0.03]
[1752910524962,7.91282572,176.77,176.76,0.03]
[1752910525624,9.94348136,176.77,176.76,0.03]
[1752910527281,13.56989422,176.77,176.76,0.03]
[1752910527646,13.56989422,176.77,176.76,1e-08]
[1752910527839,26.0,176.75,176.74,1e-08]
[1752910528056,69.06641286,176.75,176.72,0.03]
[1752910528261,3.62641286,176.73,176.68,10.0]
[1752910528453,69.06641286,176.72,176.71,1e-08]
[1752910528655,69.06641286,176.72,176.66,10.03]
[1752910528656,69.74641286,176.72,176.66,0.03]
[1752910528954,3.62641286,176.68,176.67,10.03]
[1752910529193,43.06641286,176.68,176.67,10.03]
[1752910529377,43.74641286,176.68,176.67,10.03]
[1752910529753,49.40636305,176.68,176.67,10.03]
[1752910529970,49.40636305,176.68,176.67,0.03]
[1752910530278,49.40636305,176.68,176.67,10.03]
[1752910530870,43.06641286,176.68,176.67,10.03]
[1752910531078,3.62641286,176.7,176.68,10.0]
[1752910531280,43.08641286,176.71,176.69,10.71]
[1752910531463,39.46,176.71,176.7,10.0]
[1752910531661,3.62641286,176.72,176.7,10.0]
[1752910531984,3.62641286,176.71,176.7,10.0]
[1752910534976,3.62641286,176.72,176.71,10.0]
[1752910535282,3.62641286,176.72,176.71,10.71]
[1752910536064,29.62641286,176.76,176.72,10.0]
[1752910536065,5.65803336,176.74,176.72,10.0]
[1752910536264,9.28444622,176.74,176.73,10.0]
[1752910537104,9.96444622,176.74,176.73,10.0]
[1752910538097,9.96444622,176.74,176.72,10.0]
[1752910538304,6.33803336,176.74,176.73,10.0]
[1752910538605,9.96444622,176.74,176.72,10.0]
[1752910538771,9.96444622,176.74,176.73,10.0]
[1752910539682,9.96444622,176.74,176.7,10.03]
[1752910539888,3.62641286,176.71,176.7,10.03]
[1752910541066,9.28540216,176.71,176.7,10.03]
[1752910544891,40.2,176.72,176.71,10.0]
[1752910544892,43.14641286,176.72,176.71,10.0]
[1752910545066,0.06,176.72,176.71,10.71]
[1752910545987,0.06,176.72,176.71,10.0]
[1752910546496,0.06,176.72,176.71,10.71]
[1752910546887,0.06,176.72,176.71,10.0]
[1752910547086,0.06,176.72,176.71,10.71]
[1752910548906,0.06,176.72,176.71,10.0]
[1752910549771,0.06,176.72,176.71,10.71]
[1752910551700,4.36641286,176.72,176.71,10.0]
[1752910552777,4.36641286,176.72,176.7,10.03]
[1752910552976,4.30641286,176.71,176.7,10.03]
[1752910553887,9.96540216,176.71,176.7,10.03]
[1752910555707,49.42540216,176.71,176.7,10.03]
[1752910556481,49.42540216,176.71,176.7,0.03]
[1752910557504,45.7989893,176.71,176.7,0.03]
[1752910557691,49.42540216,176.71,176.7,0.03]
[1752910563593,48.74540216,176.71,176.7,0.03]
[1752910564218,49.42540216,176.71,176.7,0.03]
[1752910567619,48.74540216,176.71,176.7,0.03]
[1752910567915,49.42540216,176.71,176.7,0.03]
[1752910570011,49.42540216,176.71,176.7,1e-08]
[1752910572795,49.42540216,176.71,176.67,0.03]
[1752910572796,63.57287542,176.71,176.67,0.03]
[1752910573009,3.62641286,176.68,176.67,0.03]
[1752910573221,43.08641286,176.68,176.67,0.03]
[1752910573438,43.76641286,176.68,176.67,0.03]
[1752910573602,73.39282572,176.68,176.66,0.03]
[1752910573806,7.25282572,176.67,176.66,0.03]
[1752910574006,7.93282572,176.67,176.66,0.03]
[1752910574207,13.59309628,176.67,176.66,0.03]
[1752910574513,27.74377268,176.67,176.62,0.03]
[1752910574709,3.62641286,176.63,176.62,10.03]
[1752910574911,43.08641286,176.63,176.62,10.03]
[1752910575417,48.74796525,176.63,176.62,0.03]
[1752910575602,49.42796525,176.63,176.62,0.03]
[1752910576414,49.42796525,176.63,176.62,10.03]
[1752910576611,49.42796525,176.63,176.62,0.03]
[1752910576807,49.42796525,176.63,176.62,10.03]
[1752910577054,48.74796525,176.63,176.62,10.03]
[1752910577736,49.42796525,176.63,176.62,10.03]
[1752910577931,48.74796525,176.63,176.62,10.03]
[1752910579930,45.80155239,176.63,176.62,10.03]
[1752910580115,48.74796525,176.63,176.62,10.03]
[1752910583338,48.74796525,176.63,176.62,0.03]
[1752910583536,45.12155239,176.63,176.62,10.03]
[1752910583726,5.6609114,176.65,176.62,10.69]
[1752910584041,3.62641286,176.63,176.62,10.03]
[1752910584222,4.30641286,176.63,176.62,10.03]
[1752910584932,4.30641286,176.63,176.62,0.03]
[1752910585242,9.96796525,176.63,176.62,0.03]
[1752910587622,9.28796525,176.63,176.62,10.03]
[1752910587827,9.28796525,176.63,176.62,10.72]
[1752910588830,39.48,176.64,176.62,10.72]
[1752910589021,5.72066979,176.66,176.64,10.0]
[1752910589223,39.48,176.65,176.64,10.0]
[1752910589424,45.20066979,176.66,176.64,10.0]
[1752910589625,48.82708265,176.66,176.64,10.0]
[1752910589925,48.82708265,176.66,176.65,0.69]
[1752910590542,48.82708265,176.66,176.65,10.69]
[1752910590950,0.06,176.66,176.65,14.31641286]
[1752910592428,0.06,176.66,176.65,31.66718797]
[1752910593031,0.06,176.66,176.65,76.78809937]
[1752910593230,0.06,176.66,176.65,71.12718797]
[1752910593427,0.06,176.66,176.65,73.16168651]
[1752910593628,0.06,176.66,176.65,76.78809937]
[1752910596033,0.06,176.66,176.65,73.16168651]
[1752910596240,0.06,176.66,176.65,76.78809937]
[1752910598266,0.06,176.66,176.65,164.32809937]
[1752910598551,0.06,176.66,176.65,163.76200823]
[1752910599665,0.06,176.66,176.65,158.10109683]
[1752910601264,0.06,176.66,176.65,163.76200823]
[1752910601972,0.06,176.66,176.65,197.69200823]
[1752910608970,0.06,176.66,176.65,201.31842109]
[1752910609175,0.06,176.7,176.69,76.71468397]
[1752910609350,0.06,176.74,176.73,26.78468397]
[1752910609550,0.06,176.74,176.73,153.78468397]
[1752910609758,0.06,176.74,176.73,158.10109683]
[1752910614276,0.06,176.74,176.73,163.75944572]
[1752910619487,0.06,176.74,176.73,197.68944572]
[1752910622087,0.06,176.74,176.73,197.66944572]
[1752910622658,0.06,176.74,176.73,194.04303286]
[1752910622990,0.06,176.74,176.73,187.69468397]
[1752910622991,0.78,176.74,176.73,187.69468397]
[1752910623678,0.06,176.74,176.73,187.69468397]
[1752910623883,0.06,176.74,176.73,191.32109683]
[1752910624191,0.06,176.74,176.73,197.65944572]
[1752910624982,0.06,176.74,176.73,199.28124572]
[1752910631521,0.06,176.76,176.75,87.48]
[1752910631696,0.06,176.76,176.75,195.43328055]
[1752910631894,0.06,176.76,176.75,195.54750969]
[1752910633422,0.06,176.76,176.75,201.20521831]
[1752910638627,0.06,176.78,176.75,201.20521831]
[1752910638628,0.06,176.78,176.77,60.71468397]
[1752910638924,0.06,176.78,176.77,191.80680368]
[1752910639114,0.06,176.78,176.77,197.57816533]
[1752910643911,0.06,176.78,176.77,110.09816533]
[1752910644233,0.06,176.78,176.77,110.66387218]
[1752910647167,0.75,176.78,176.77,100.70039082]
[1752910647445,0.75,176.78,176.77,104.32680368]
[1752910647611,0.75,176.78,176.77,130.32680368]
[1752910647811,0.06,176.78,176.77,129.76109683]
[1752910648357,0.06,176.78,176.77,136.06816533]
[1752910648844,0.06,176.78,176.77,110.06816533]
[1752910649033,0.06,176.78,176.77,110.63387218]
[1752910649234,0.06,176.78,176.77,198.11387218]
[1752910649415,0.06,176.78,176.77,197.54816533]
[1752910651635,0.06,176.78,176.77,196.89816533]
[1752910651948,0.75,176.78,176.77,191.24109683]
[1752910653943,0.06,176.78,176.77,191.24109683]
[1752910654148,0.06,176.78,176.77,196.89816533]
[1752910654331,0.06,176.78,176.77,197.54816533]
[1752910656745,0.06,176.78,176.77,191.24109683]
[1752910657050,0.75,176.78,176.77,191.24109683]
[1752910657951,0.06,176.78,176.77,191.24109683]
[1752910659746,0.06,176.78,176.77,217.24109683]
[1752910660146,0.75,176.78,176.77,148.19468397]
[1752910660354,0.75,176.78,176.77,97.48]
[1752910660673,4.37641286,176.78,176.77,10.0]
[1752910660862,4.37641286,176.78,176.77,8.97]
[1752910661365,10.03316136,176.78,176.77,8.97]
[1752910661953,6.4067485,176.78,176.77,8.97]
[1752910662163,0.75,176.78,176.77,8.97]
[1752910663765,10.03316136,176.78,176.77,8.97]
[1752910665575,10.03316136,176.78,176.76,8.97]
[1752910665773,4.21641286,176.77,176.76,8.97]
[1752910666440,4.21641286,176.77,176.75,9.0]
[1752910666653,4.21641286,176.76,176.75,9.0]
[1752910667458,9.8738014,176.76,176.75,9.0]
[1752910667666,9.8738014,176.76,176.7,38.89109683]
[1752910667882,3.62641286,176.74,176.7,38.89109683]
[1752910668063,4.21641286,176.74,176.7,38.89109683]
[1752910669084,4.21641286,176.74,176.7,35.26468397]